Cogmind - Beta 16 @@@ ROGUE MODE // 2026.01.18 @ 00:54:10 Player: DreamCore Result: Destroyed by Y-45 Defender with Heavy Assault Rifle Performance ------------- Evolutions (0) 0 Regions Visited (2) 400 Robots Destroyed (30) 150 Value Destroyed (585) 585 Prototype IDs (2) 40 Alien Tech Used (0) 0 Bonus (0) 0 TOTAL SCORE: 1175 Bonus ------- None Cogmind --------- Core Integrity 0/250 Matter 235/300 Energy 31/100 System Corruption 0% Temperature Cool (9) Movement Walking (190) Ox1 Location -10/Subcaves Parts ------- > --- POWER (1) -------- (None) > --- PROPULSION (2) --- Aluminum Leg Aluminum Leg > --- UTILITY (2) ------ Large Storage Unit Makeshift Light Armor Plating > --- WEAPON (2) ------- Heavy Riot Gun Subdweller Machine Gun > --- INVENTORY (15) --- Subdweller Power Source Aluminum Leg Makeshift Leg Heat Sink Structural Scanner Sensor Array Sensor Array Signal Interpreter Signal Interpreter Utility Shielding Weapon Shielding Riot Gun Assault Rifle Grenade Launcher Mining Laser Peak State ------------ > --- POWER ------------ (None) > --- PROPULSION ------- Aluminum Leg Aluminum Leg > --- UTILITY ---------- Large Storage Unit Makeshift Light Armor Plating > --- WEAPON ----------- Heavy Riot Gun Subdweller Machine Gun > --- INVENTORY -------- Subdweller Power Source Aluminum Leg Makeshift Leg Heat Sink Structural Scanner Sensor Array Sensor Array Signal Interpreter Signal Interpreter Utility Shielding Weapon Shielding Riot Gun Assault Rifle Grenade Launcher Mining Laser [Rating: 15] Favorites ----------- Power Ion Engine Engine Ion Engine Propulsion Aluminum Leg Leg Aluminum Leg Utility Core Shielding Storage Large Storage Unit Protection Core Shielding Weapon EM Pulse Gun Energy Gun EM Pulse Gun Ballistic Gun Assault Rifle Launcher Grenade Launcher Build | -11 -10 -10 ------- Run | Yrd Mat Sub Slots Evolved . | . . . Power . | . . . Propulsion . | . . . Utility . | . . . Weapon . | . . . Parts Attached 18 | . 12 6 Power 4 | . 4 . Engine 4 | . 4 . Core . | . . . Reactor . | . . . Propulsion 2 | . . 2 Treads . | . . . Leg 2 | . . 2 Wheel . | . . . Hover . | . . . Flight . | . . . Utility 4 | . 3 1 Device . | . . . Storage 1 | . 1 . Processor . | . . . Hackware . | . . . Protection 3 | . 2 1 Artifact . | . . . Weapon 8 | . 5 3 Energy Gun 3 | . 2 1 Energy Cannon . | . . . Ballistic Gun 4 | . 2 2 Ballistic Cannon . | . . . Launcher 1 | . 1 . Special Weapon . | . . . Impact Weapon . | . . . Slashing Weapon . | . . . Piercing Weapon . | . . . Special Melee Weapon . | . . . Unidentified Prototypes . | . . . Parts Lost 6 | . 3 3 Power 2 | . 1 1 Propulsion 2 | . . 2 Utility . | . . . Weapon 2 | . 2 . Highest Loss Streak 2 | . 2 2 To Critical Strikes . | . . . Average Backups 12 | 6 11 14 Power . | 1 . . Propulsion 2 | 4 2 2 Utility 6 | . 5 8 Weapon 2 | 1 2 3 Tool/Special . | . . . Unused Backups 18 | . 3 15 Power 1 | . . 1 Propulsion 2 | . . 2 Utility 13 | . 3 10 Weapon 2 | . . 2 Tool/Special . | . . . Average Slot Usage (%) 96 | . 98 90 Engine 11 | . 13 6 Leg 27 | . 28 26 Storage 14 | . 14 14 Protection 13 | . 13 14 Energy Gun 10 | . 14 . Ballistic Gun 15 | . 13 20 Launcher 1 | . . 7 Peak Build Rating 15 | 6 8 15 Average Rating 8 | 6 7 11 On Entrance 6 | 6 6 8 Avg Prop Armor Cover (%) . | . . . Naked Turns . | . . . Heaviest Build 33 | 12 31 33 Greatest Support 20 | 20 20 20 Greatest Overweight (x) 2 | . 1 2 Average Overweight (x) . | . . 1 Largest Inventory Capacity 15 | 8 15 15 Average Capacity 13 | 8 12 15 Most Carried 15 | 6 15 15 Average Carried 12 | 6 11 14 Final Capacity 15 | 8 15 15 Final Carried 15 | 6 15 15 Class Distribution -------------------- 100% | Mutant Dominant Class ---------------- Mutant | -10/Materials Mutant | -10/Subcaves Resources | -11 -10 -10 ----------- Run | Yrd Mat Sub Matter Collected 561 | 200 271 90 Remotely . | . . . Salvage Created 984 | . 868 116 Parts 60 | . 56 4 Haulers Intercepted 2 | . 2 . Recyclers Shooed 2 | . 2 . Parts Field Recycled . | . . . Retrieved Matter . | . . . Parts Self-Destructed 2 | . . 2 Prevented . | . . . Parts Restored . | . . . Kills | -11 -10 -10 ------- Run | Yrd Mat Sub Combat Hostiles Destroyed 18 | . 14 4 Guns 10 | . 9 1 AOE 8 | . 5 3 Classes Destroyed 8 | . 7 1 Worker 3 | . 3 . Builder 2 | . 2 . Hauler 2 | . 2 . Recycler 2 | . 2 . Watcher 3 | . 3 . Swarmer 7 | . 6 1 Grunt 8 | . 8 . Subdweller 3 | . . 3 Best Kill Streak 5 | . 5 2 Combat Bots Only 3 | . 3 2 Max Kills in Single Turn 2 | . 2 1 Gunslinging . | . . . Exploded 1 | . 1 1 Melee . | . . . Uniques/NPCs Destroyed . | . . . Combat | -11 -10 -10 -------- Run | Yrd Mat Sub Hostile Shots Fired 103 | . 75 28 Missed 38 | . 29 9 Hits 65 | . 46 19 Projectile 65 | . 46 19 Critical Strikes 2 | . . 2 Damage Taken 1056 | . 689 367 Core 252 | . 137 115 Absorbed by Shields . | . . . Redirected to Shielding 32 | . 28 4 Core Remaining (%) 100 | 100 . . Volleys Fired 86 | . 69 17 Largest 2 | . 2 2 Hottest 90 | . 80 90 Shots Fired 170 | . 137 33 Gun 165 | . 136 29 Cannon . | . . . Launcher 5 | . 1 4 Special . | . . . Kinetic 89 | . 63 26 Thermal . | . . . Explosive 5 | . 1 4 Electromagnetic 76 | . 73 3 Robot Hit Streak 11 | . 11 6 Robot Miss Streak 4 | . 4 1 Penetration Max . | . . . Secondary Targets . | . . . Shots Hit Robots 97 | . 77 20 Core Hits 42 | . 33 9 Critical Kills 1 | . 1 . Critical Parts Destroyed . | . . . Critical Strikes 3 | . 2 1 Destroy 2 | . 1 1 Corrupt 1 | . 1 . Melee Attacks . | . . . Impact . | . . . Slashing . | . . . Piercing . | . . . Sneak Attacks . | . . . Combat Hostiles . | . . . Follow-up Attacks . | . . . Damage Inflicted 1964 | . 1467 497 Guns 1312 | . 1005 307 Cannons . | . . . Explosions 631 | . 441 190 Melee . | . . . Ramming 21 | . 21 . Kinetic 648 | . 388 260 Thermal 397 | . 397 . Explosive 234 | . 44 190 Electromagnetic 664 | . 617 47 Impact . | . . . Slashing . | . . . Piercing . | . . . Highest Corruption . | . . . Average Corruption . | . . . Corruption Purged . | . . . Corruption Blocked . | . . . Overload Shots . | . . . Overflow Damage 12 | . 12 . Projectiles . | . . . Explosions 12 | . 12 . Melee . | . . . Knockbacks . | . . . Impact . | . . . Kinetic . | . . . Secondary . | . . . Self-Inflicted Damage 135 | . 135 . Shots 5 | . 5 . Rammed . | . . . Targets Rammed 6 | . 6 . Kicked 6 | . 6 . Crushed . | . . . Highest Temperature 144 | . 144 . Average Temperature 30 | . 30 . Received Heat Transfer 306 | . 219 87 Siege Activations . | . . . Martial Activations . | . . . Shielding Activations . | . . . Robots Disrupted . | . . . Combat Hostiles . | . . . Robots Corrupted . | . . . Combat Hostiles . | . . . Parts Fried 2 | . 2 . Impact Corruptions . | . . . Robots Melted . | . . . Combat Hostiles . | . . . Parts Melted . | . . . Heat Transferred 500 | . 500 . Parts Sabotaged . | . . . Parts Stolen . | . . . Parts Stripped . | . . . Power Chain Reactions 8 | . 8 . Alert | -11 -10 -10 ------- Run | Yrd Mat Sub Maximum Alert Level . | . . . Low Security (%) 100 | 100 100 . Level 1 . | . . . Level 2 . | . . . Level 3 . | . . . Level 4 . | . . . Level 5 . | . . . High Security . | . . . Max Security . | . . . Peak Influence 139 | . 139 . Initial . | . . . Average 54 | . 54 . Influence Increases 553 | . 533 20 Destroy 0b10 Robot/C 300 | . 280 20 Destroy 0b10 Robot/NC 60 | . 60 . Destroy Leader 70 | . 70 . Successful Hack 12 | . 12 . Disable Machine 30 | . 30 . Destroy Structure 36 | . 36 . Lose Combat Pursuer 45 | . 45 . Influence Decreases 541 | . 473 68 Entered New Map 29 | . . 29 Time Decay 472 | . 443 29 Lost Part 40 | . 30 10 Squads Dispatched 2 | . 2 . Investigation 1 | . 1 . Extermination . | . . . Reinforcement 1 | . 1 . Assault . | . . . Garrison . | . . . Intercept . | . . . Searches Triggered . | . . . Construction Impeded . | . . . Haulers Reinforced . | . . . Active Scanning Responses . | . . . Cargo Convoy Interrupts . | . . . Stealth | -11 -10 -10 --------- Run | Yrd Mat Sub Distress Signals 2 | . 2 . Communications Jammed . | . . . Distress Signals . | . . . Times Spotted 32 | . 28 4 Peak Tracking Total 5 | . 5 2 Tactical Retreats 2 | . 2 . Traps | -11 -10 -10 ------- Run | Yrd Mat Sub Traps Triggered 3 | . 3 . Indirectly . | . . . Trap Hack Attempts . | . . . Triggered . | . . . Disarmed . | . . . Reprogrammed . | . . . Reused . | . . . Traps Extracted . | . . . Installed . | . . . Triggered . | . . . Machines | -11 -10 -10 ---------- Run | Yrd Mat Sub Machines Disabled 2 | . 2 . Max in Single Turn 1 | . 1 . Machines Repaired . | . . . Machines Dismantled . | . . . Machines Sabotaged . | . . . Overloaded Fab Kills . | . . . Hacking | -11 -10 -10 --------- Run | Yrd Mat Sub Machines Accessed 6 | . 6 . Terminals 4 | . 4 . Fabricators . | . . . Repair Stations . | . . . Recycling Units 2 | . 2 . Scanalyzers . | . . . Garrison Access . | . . . Total Hacks 33 | . 33 . Successful 16 | . 16 . Failed 17 | . 17 . Catastrophic 2 | . 2 . Database Lockouts . | . . . Manual 23 | . 23 . Terminals 24 | . 24 . Fabricators . | . . . Repair Stations . | . . . Recycling Units 9 | . 9 . Scanalyzers . | . . . Garrison Access . | . . . Terminal Hacks 7 | . 7 . Robot Analysis 3 | . 3 . Prototype ID Bank 1 | . 1 . Alert Level 1 | . 1 . Locate Traps 2 | . 2 . Fabricator Hacks . | . . . Repair Station Hacks . | . . . Recycling Unit Hacks 3 | . 3 . Report Inventory 2 | . 2 . Retrieve Components 1 | . 1 . Scanalyzer . | . . . Garrison Access Hacks . | . . . Unauthorized Hacks 6 | . 6 . Terminals 3 | . 3 . Botnet 3 | . 3 . Fabricators . | . . . Repair Stations . | . . . Recycling Units 3 | . 3 . Reject 2 | . 2 . Mask 1 | . 1 . Scanalyzers . | . . . Garrison Access . | . . . Data Cores Recovered . | . . . Used . | . . . Hacking Detections 5 | . 5 . Full Trace Events . | . . . Feedback Events . | . . . Feedback Blocked . | . . . Robot Schematics Acquired . | . . . Robots Built . | . . . Authchips . | . . . Time . | . . . Total Robot Build Rating . | . . . Part Schematics Acquired . | . . . Parts Built . | . . . Authchips . | . . . Time . | . . . Total Part Build Rating . | . . . Part Studies Acquired . | . . . Parts Repaired . | . . . Time . | . . . Parts Recycled . | . . . Recycled Matter . | . . . Retrieved Matter . | . . . Retrieved Components 2 | . 2 . Parts Scanalyzed . | . . . Part Schematics Acquired . | . . . Parts Damaged . | . . . Bothacking | -11 -10 -10 ------------ Run | Yrd Mat Sub Used RIF Installer . | . . . Robots Hacked . | . . . Non-combat . | . . . Combat . | . . . Robot Hacks Applied . | . . . Relay Couplers Released . | . . . Fabnet Peak Effective % . | . . . Robots Rewired . | . . . Allies Hacked . | . . . Hacks Repelled . | . . . Allies | -11 -10 -10 -------- Run | Yrd Mat Sub Total Allies . | . . . Largest Group . | . . . Highest-Rated Group . | . . . Highest-Rated Ally . | . . . Total Orders . | . . . Ally Attacks . | . . . Total Damage . | . . . Kills . | . . . Allies Corrupted . | . . . Allies Melted . | . . . Intel | -11 -10 -10 ------- Run | Yrd Mat Sub Active Infowar (turns) . | . . . Robot Analysis Total 3 | . 3 . Derelict Logs Recovered . | . . . Drone Launches . | . . . Drone Recoveries . | . . . Exploration | -11 -10 -10 ------------- Run | Yrd Mat Sub Turns Passed 2285 | 10 1730 545 Spaces Moved 1151 | 9 893 249 Core . | . . . Treads . | . . . Legs 1151 | 9 893 249 Wheels . | . . . Hover . | . . . Flight . | . . . Fastest Speed 120 | 120 120 190 Average Speed 169 | 120 163 192 Slowest Speed 260 | 120 190 260 Overloaded Moves . | . . . Propulsion Burnouts . | . . . Robots Hopped . | . . . Potential Cave-ins . | . . . Cave-ins Triggered . | . . . Exploration Rate (%) 37 | 3 86 23 Regions Visited 2 Branch Regions 1 Pre-discovered Areas . | . . . Known Exits Taken . | . . . Unknown Exits Taken 2 | 1 1 . Scrap Searched 3 | . . 3 Spaces Dug . | . . . Terrain Destroyed 44 | . 32 12 Melee . | . . . Projectile . | . . . AOE 44 | . 32 12 Terrain Rammed . | . . . Walls Destroyed . | . . . Machines Disabled . | . . . Actions | -11 -10 -10 --------- Run | Yrd Mat Sub Total 1319 | 8 1028 283 Wait 17 | . 16 1 Move 1149 | 8 892 249 Hop . | . . . Pick Up 25 | . 21 4 Fast Attach 2 | . 1 1 Attach 6 | . 4 2 Detach . | . . . Swap 12 | . 8 4 Drop 16 | . 11 5 Fire 86 | . 69 17 Melee . | . . . Ram . | . . . Kick 6 | . 6 . Crush . | . . . Escape Stasis . | . . . Rewire . | . . . Trap . | . . . Miscellaneous . | . . . Route ------- -11/Scrapyard -10/Materials (discovered 4 exits: [*Mat x2] / [*Min] / [*Sub]) -10/Subcaves History --------- Turn | Location | Event 1 | -11/Scrapyard | Discovered new exit (range 3) 11 | -11/Scrapyard | Entered Materials 107 | -10/Materials | Discovered new exit (range 5) 310 | -10/Materials | Build established: Mutant 377 | -10/Materials | Discovered new exit (range 8) 458 | -10/Materials | Discovered new exit (range 16) 959 | -10/Materials | Discovered new exit (range 11) 1334 | -10/Materials | Core integrity fell below 50% 1741 | -10/Materials | Entered Subcaves 1742 | -10/Subcaves | Approached by a straggling Scientist 1780 | -10/Subcaves | Disturbed a concealed Subdweller 1977 | -10/Subcaves | Core integrity fell below 20% 2286 | -10/Subcaves | Destroyed by Y-45 Defender with Heavy Assault Rifle Last Messages --------------- 01972_ XP-HQT(R) suffers critical hit (Destroy). 01978_ Aluminum Leg destroyed. 01980_ Lgt. Ion Engine destroyed. 01983_ AG-VFR(R) destroyed. 01998_ XP-HQT(R) destroyed. 02011_ Acquired 6 matter. 02013_ Acquired 15 matter. 02041_ Acquired Mak. Leg. LW-EX1(c): "I think it's somewhere east of here" 02056_ Dropped Visual Processing Unit. 02056_ Acquired Riot Gun. 02067_ Dropped Sub. Machine Gun. LW-EX1(c): "I think it's somewhere east of here" LW-EX1(c): "I think it's somewhere southeast of here" LW-EX1(c): "I think it's somewhere south of here" 02211_ Acquired 30 matter. LW-EX1(c): "I think it's somewhere south of here" 02271_ S-10 Pest destroyed. 02275_ Critical hit (Burn: +37). 02283_ Y-45 Defender misfires. Map ----- +----------------------------------------------------+ | ?????????????????????????????????????????????????? | | ?????????????????????????????????????????????????? | | ?????????????????????????????????????????????????? | | ?????????????????????????????????????????????????? | | ?????????????????????????????????????????????????? | | ?????????????????????????????????????????????????? | | ?????????????????????????????????????????????????? | | ???? "##??????????????????????##?????????????????? | | ????? " ###?????????????????? &##????????????????? | | ?????? ##??###??????????? &%&#????????????????? | | #####??# #??# ########??? [* ##???????????????? | | #### #?## ???? ##??????????????? | | ## ### ##?? ## ????????????? | | #?# #? #?# ????????????? | | ### #### ## #????????????? | | ## ## #????????????? | | #???????????? | | # ## % ???????????? | | # ### ## ?????????????? | | # ###?# ##??? # ??????????? | | ### ## #??## #????? #?? ??????????? | | #?## ## ##??# #????% # #?????????? | | #??# ###???# #??? ???????????? | | #??# ##?????###c ####Y #??????????????? | | ####??####????????# ##?????????????????? | | ##????????????????## @ #?????????????????? | | ??????????????????# ## # #?????????????????? | | ??????????????????## #####? ##?????????????????? | | ???????????????????## #???????#??????????????????? | | ????????????????????###??????????????????????????? | | ?????????????????????????????????????????????????? | | ?????????????????????????????????????????????????? | | ?????????????????????????????????????????????????? | | ?????????????????????????????????????????????????? | | ?????????????????????????????????????????????????? | | ?????????????????????????????????????????????????? | | ?????????????????????????????????????????????????? | | ?????????????????????????????????????????????????? | | ?????????????????????????????????????????????????? | | ?????????????????????????????????????????????????? | | ?????????????????????????????????????????????????? | | ?????????????????????????????????????????????????? | | ?????????????????????????????????????????????????? | | ?????????????????????????????????????????????????? | | ?????????????????????????????????????????????????? | | ?????????????????????????????????????????????????? | | ?????????????????????????????????????????????????? | | ?????????????????????????????????????????????????? | | ?????????????????????????????????????????????????? | | ?????????????????????????????????????????????????? | +----------------------------------------------------+ Best States ------------- Heat Dissipation 25 Energy Generation 10 Energy Capacity 250 Matter Stores 300 Matter Capacity 300 Sight Range 16 Terrain Scan Density 10 Armor Coverage 100 Core Shielding 20 Evasion (%) 55 Item Schematics ----------------- None Robot Schematics ------------------ None Fabricated ------------ Nothing Repaired ---------- Nothing Studied --------- None Alien Tech Used ----------------- None Achievements -------------- None Challenges ------------ None Game ------ Seed GodDerelictBarrier Manual? 0 Play Time 00:25:41 Cumulative 60.4 hours Start 2026.01.18 @ 00:22:56 End 2026.01.18 @ 00:54:10 Sessions 1 Manual Loads 0 Difficulty Rogue Special Mode None Game No. 71 Rogue 71 Adventurer 0 Explorer 0 Win Type - Total 1 Types 1/0/0/0/0/0/0/0/0/0 Lore% 25 Gallery% 33 Achievement% 24 Wizard Run 0 Options --------- Layout 0 ASCII 0 Keyboard 0 Movement Mouse Keybinds 0 Fullscreen 0 Font 16/SmallcapsGlow Map View 88x55 Zoom Use 0% Tactical HUD 1 Map Filters NONE Filters NONE Steam 1 RUN: 7ccabd7d-b990-4783-948f-306224ae41ef